bitfinex/quotes_BTCUSD_20250213
["timestamp","ask_amount","ask_price","bid_price","bid_amount"]
[1739463349438,0.00486179,95886.0,95882.0,0.156441]
[1739463349667,0.15645,95877.0,95876.0,0.00335599]
[1739463349867,0.208588,95883.0,95876.0,0.00335599]
[1739463350071,0.208578,95887.0,95877.0,0.15645]
[1739463350283,0.00489442,95882.0,95877.0,0.15645]
[1739463350537,0.156439,95884.0,95877.0,0.15645]
[1739463350737,0.00489442,95881.0,95877.0,0.2086]
[1739463350912,0.001,95888.0,95876.0,0.00035599]
[1739463351122,0.00969836,95883.0,95877.0,0.15645]
[1739463351323,0.156446,95880.0,95876.0,0.00035599]
[1739463351481,0.00969836,95883.0,95876.0,0.00035599]
[1739463351902,0.00969836,95883.0,95877.0,0.002]
[1739463352226,0.156446,95880.0,95876.0,0.00035599]
[1739463352546,0.15645,95877.0,95876.0,0.00135599]
[1739463352910,0.15645,95877.0,95876.0,0.00035599]
[1739463353114,0.0048919,95877.0,95876.0,0.00035599]
[1739463353292,0.0048919,95877.0,95876.0,0.15680799]
[1739463353500,0.00969836,95879.0,95876.0,0.00035599]
[1739463353701,0.15645,95877.0,95876.0,0.00035599]
[1739463353899,0.15645,95877.0,95876.0,0.00235599]
[1739463354102,0.16133897,95877.0,95876.0,0.00235599]
[1739463354358,0.17103733,95877.0,95876.0,0.00035599]
[1739463354792,0.17103733,95877.0,95876.0,0.00435599]
[1739463354958,0.17103733,95877.0,95876.0,0.00535599]
[1739463355298,0.01458733,95877.0,95876.0,0.00035599]
[1739463355512,0.17103733,95877.0,95876.0,0.00235599]
[1739463355714,0.01458733,95877.0,95876.0,0.00335599]
[1739463355914,0.01458733,95877.0,95876.0,0.00235599]
[1739463355915,0.17103733,95877.0,95876.0,0.00235599]
[1739463356331,0.17103733,95877.0,95876.0,0.16080799]
[1739463356332,0.01458733,95877.0,95876.0,0.16080799]
[1739463356744,0.01458733,95877.0,95876.0,0.26131164]
[1739463356971,0.00969836,95877.0,95876.0,0.34171164]
[1739463357402,0.00969836,95877.0,95876.0,0.33671164]
[1739463357815,0.00969836,95877.0,95876.0,0.34271164]
[1739463358557,0.00969836,95877.0,95876.0,0.33671164]
[1739463358752,0.00969836,95877.0,95876.0,0.33971164]
[1739463359892,0.00969836,95877.0,95876.0,0.00735599]
[1739463360299,0.16614836,95877.0,95876.0,0.00735599]
[1739463360498,0.17106701,95877.0,95876.0,0.00735599]
[1739463360895,0.17106701,95877.0,95876.0,0.00335599]
[1739463361114,0.17106701,95877.0,95876.0,0.00035599]
[1739463361317,0.18661378,95877.0,95876.0,0.00335599]
[1739463361520,0.18661378,95877.0,95876.0,0.00535599]
[1739463361818,0.18661378,95877.0,95876.0,0.00035599]
[1739463362022,0.33871743,95877.0,95876.0,0.00135599]
[1739463362221,0.33871743,95877.0,95876.0,0.00035599]
[1739463362448,0.156463,95869.0,95868.0,0.00022407]
[1739463362903,0.16139029,95869.0,95868.0,0.00022407]
[1739463363320,0.00492729,95869.0,95868.0,0.00022407]
[1739463363519,0.02524513,95869.0,95868.0,0.00022407]
[1739463363735,0.03017242,95869.0,95868.0,0.00022407]
[1739463363938,0.02524513,95869.0,95868.0,0.00222407]
[1739463364138,0.03017242,95869.0,95868.0,0.00222407]
[1739463364539,0.02524513,95869.0,95868.0,0.00222407]
[1739463364743,0.03017242,95869.0,95868.0,0.00422407]
[1739463365174,0.18663542,95869.0,95868.0,0.00422407]
[1739463365580,0.26823542,95869.0,95868.0,0.00422407]
[1739463365823,0.37073907,95869.0,95868.0,0.00422407]
[1739463366033,0.41783907,95869.0,95868.0,0.00422407]
[1739463366237,0.41783907,95869.0,95868.0,0.00222407]
[1739463366641,0.156481,95858.0,95851.0,0.00022365]
[1739463366882,0.156481,95858.0,95857.0,0.00026737]
[1739463366883,0.25898465,95858.0,95857.0,0.00026737]
[1739463367094,0.26373298,95858.0,95857.0,0.00026737]
[1739463367518,0.77111298,95858.0,95857.0,0.00026737]
[1739463367725,1.24815598,95858.0,95857.0,3.7e-07]
[1739463367939,0.56453298,95858.0,95857.0,0.00100037]
[1739463368334,0.59077811,95858.0,95857.0,0.00100037]
[1739463368555,1.15671511,95858.0,95857.0,0.00100037]
[1739463368759,1.16371511,95858.0,95857.0,0.00200037]
[1739463369908,1.06964211,95858.0,95857.0,0.00100037]
[1739463370115,1.06264211,95858.0,95857.0,3.7e-07]
[1739463370320,0.59777811,95858.0,95857.0,0.00200037]
[1739463370955,0.13949711,95858.0,95857.0,0.00100037]
[1739463371157,0.1562,95864.0,95857.0,0.00100037]
[1739463371158,0.01316529,95864.0,95857.0,0.00100037]
[1739463371367,0.007,95858.0,95857.0,0.00200037]
[1739463371574,0.163481,95858.0,95857.0,0.00200037]
[1739463371784,0.007,95858.0,95857.0,0.00200037]
[1739463372010,0.014,95858.0,95857.0,0.15948337]
[1739463372629,0.014,95858.0,95857.0,0.00300037]
[1739463373212,0.007,95858.0,95857.0,0.00100037]
[1739463373431,0.156479,95859.0,95857.0,3.7e-07]
[1739463373633,0.009,95858.0,95857.0,0.00100037]
[1739463374071,0.002,95858.0,95857.0,0.00100037]
[1739463374506,0.156479,95859.0,95857.0,0.00100037]
[1739463374710,0.156479,95859.0,95857.0,0.00200037]
[1739463374914,0.208622,95867.0,95857.0,3.7e-07]
[1739463375119,0.10250365,95867.0,95857.0,3.7e-07]
[1739463375322,0.001,95858.0,95857.0,3.7e-07]
[1739463375729,0.157481,95858.0,95857.0,3.7e-07]
[1739463375939,0.26098465,95858.0,95857.0,3.7e-07]
[1739463376564,0.25998465,95858.0,95857.0,3.7e-07]
[1739463377153,0.25898465,95858.0,95857.0,3.7e-07]
[1739463377356,0.41898465,95858.0,95857.0,0.00022402]
[1739463377804,0.41998465,95858.0,95857.0,0.00022402]
[1739463378225,0.42098465,95858.0,95857.0,0.00122402]
[1739463378392,0.41898465,95858.0,95857.0,0.00022402]
[1739463378828,0.41998465,95858.0,95857.0,0.00122402]
[1739463379025,0.41998465,95858.0,95857.0,0.00096162]
[1739463379438,0.42998465,95858.0,95857.0,0.00096162]
[1739463379648,0.43698465,95858.0,95857.0,0.00196162]
[1739463380838,0.42698465,95858.0,95857.0,0.00196162]
[1739463381425,0.44245592,95858.0,95857.0,0.00196162]
[1739463381634,0.28245592,95858.0,95857.0,0.00196162]
[1739463382753,0.02347127,95858.0,95857.0,0.00196162]
[1739463383178,0.17995227,95858.0,95857.0,0.00196162]
[1739463383567,0.17895227,95858.0,95857.0,0.001]
[1739463383794,0.156484,95856.0,95851.0,0.00022365]
[1739463384202,0.18162982,95856.0,95851.0,0.00022365]
[1739463384634,0.28413347,95856.0,95851.0,0.00022365]
[1739463385058,0.43813347,95856.0,95851.0,0.00022365]
[1739463385283,0.5399336,95856.0,95851.0,0.00022365]
[1739463385461,0.56110015,95856.0,95851.0,0.00022365]
[1739463385913,0.47130002,95856.0,95851.0,0.00022365]
[1739463386541,0.15651,95840.0,95833.0,0.00022386]
[1739463387704,0.25901365,95840.0,95833.0,0.00022386]
[1739463387941,0.28415947,95840.0,95833.0,0.00022386]
[1739463388463,0.30046392,95840.0,95833.0,0.00022386]
[1739463388664,0.30246392,95840.0,95833.0,0.00022386]
[1739463389026,0.32299075,95840.0,95833.0,0.00022386]
[1739463389242,0.32299075,95840.0,95833.0,5.9e-07]
[1739463389243,0.30652,95834.0,95833.0,5.9e-07]
[1739463389420,0.30652,95834.0,95824.0,0.00018285]
[1739463389421,0.156535,95825.0,95824.0,0.00018285]
[1739463389621,0.25903865,95825.0,95824.0,0.00018285]
[1739463390391,0.40903865,95825.0,95824.0,0.00018285]
[1739463390577,0.45504143,95825.0,95824.0,0.00062338]
[1739463390776,0.45904143,95825.0,95824.0,0.00162338]
[1739463391389,0.46604143,95825.0,95824.0,0.00262338]
[1739463391558,0.48139639,95825.0,95824.0,0.00162338]
[1739463391752,0.77856239,95825.0,95824.0,0.00062338]
[1739463392079,0.75427039,95825.0,95824.0,0.00162338]
[1739463392344,0.52969639,95825.0,95824.0,0.00162338]
[1739463392953,0.53369639,95825.0,95824.0,0.00262338]
[1739463393151,0.51034143,95825.0,95824.0,0.00162338]
[1739463393401,0.50334143,95825.0,95824.0,0.00062338]
[1739463393582,0.46804143,95825.0,95824.0,0.00162338]
[1739463394236,0.46104143,95825.0,95824.0,0.00162338]
[1739463394444,0.46804143,95825.0,95824.0,0.00162338]
[1739463394647,0.69741243,95825.0,95824.0,0.00162338]
[1739463394849,0.56673943,95825.0,95824.0,0.00062338]
[1739463395060,0.15,95824.0,95797.0,0.08339458]
[1739463395285,0.15,95824.0,95797.0,0.08352677]
[1739463395286,0.156579,95798.0,95797.0,0.08352677]
[1739463395691,0.156579,95798.0,95797.0,0.00013219]
[1739463395901,0.17277842,95798.0,95797.0,0.00013219]
[1739463396298,0.19792424,95798.0,95797.0,0.00013219]
[1739463396955,0.31976649,95798.0,95797.0,0.00013219]
[1739463397374,0.31976649,95798.0,95797.0,0.00113219]
[1739463398169,0.156589,95792.0,95791.0,0.0004]
[1739463398382,0.25909265,95792.0,95791.0,0.00053192]
[1739463399222,0.27843125,95792.0,95791.0,0.00053192]
[1739463400051,0.30357707,95792.0,95791.0,0.00053192]
[1739463400689,0.31057707,95792.0,95791.0,0.00053192]
[1739463400897,0.31557707,95792.0,95791.0,0.00053192]
[1739463405001,0.30857707,95792.0,95791.0,0.00053192]
[1739463405151,0.20607342,95792.0,95791.0,0.00053192]
[1739463405347,0.21307342,95792.0,95791.0,0.00053192]
[1739463406010,0.20107342,95792.0,95791.0,0.00053192]
[1739463406349,0.20607342,95792.0,95791.0,0.00053192]
[1739463406546,0.28923847,95792.0,95791.0,0.00053192]
[1739463406762,0.28423847,95792.0,95791.0,0.00053192]
[1739463406958,0.28523847,95792.0,95791.0,0.00053192]
[1739463407415,0.29023847,95792.0,95791.0,0.00053192]
[1739463407623,0.29123847,95792.0,95791.0,0.00053192]
[1739463407828,0.28523847,95792.0,95791.0,0.00053192]
[1739463408132,0.29223847,95792.0,95791.0,0.00053192]
[1739463408739,0.28523847,95792.0,95791.0,0.00053192]
[1739463408941,0.29223847,95792.0,95791.0,0.00053192]
[1739463409146,0.15495543,95792.0,95767.0,0.16039458]
[1739463409352,0.10250365,95791.0,95767.0,0.16039458]
[1739463409553,0.156611,95779.0,95771.0,0.156622]
[1739463409755,0.156611,95779.0,95769.0,0.208834]
[1739463409961,0.208809,95782.0,95773.0,0.15662]
[1739463409962,0.156608,95781.0,95773.0,0.15662]
[1739463410164,0.156608,95781.0,95774.0,0.156617]
[1739463410366,0.156608,95780.0,95774.0,0.156617]
[1739463410797,0.156608,95780.0,95768.0,0.208838]
[1739463410798,0.0025,95791.0,95768.0,0.208838]
[1739463411008,0.0025,95791.0,95778.0,0.156612]
[1739463411170,0.001,95781.0,95779.0,0.15661]
[1739463411538,0.001,95781.0,95780.0,0.206408]
[1739463411742,0.001,95781.0,95780.0,0.1255]
[1739463411946,0.001,95781.0,95769.0,0.0813]
[1739463412278,0.24918073,95780.0,95779.0,0.002]
[1739463412504,0.46792265,95780.0,95779.0,0.002]
[1739463412715,0.49306847,95780.0,95779.0,0.002]
[1739463413293,0.51238526,95780.0,95779.0,0.002]
[1739463413682,0.156628,95769.0,95767.0,0.00144184]
[1739463413920,0.156628,95768.0,95767.0,0.00144184]
[1739463414342,0.18177382,95768.0,95767.0,0.00144184]
[1739463414933,0.20109061,95768.0,95767.0,0.00144184]
[1739463415141,0.20109061,95768.0,95767.0,0.00444184]
[1739463415786,0.20109061,95768.0,95767.0,0.00744184]
[1739463416150,0.18177382,95768.0,95767.0,0.00744184]
[1739463416918,0.18177382,95768.0,95767.0,0.00444184]
[1739463417363,0.18177382,95768.0,95767.0,0.00744184]
[1739463417721,0.18177382,95768.0,95767.0,0.00444184]
[1739463417926,0.02514582,95768.0,95767.0,0.00444184]
[1739463418129,0.02514582,95768.0,95762.0,0.0811]
[1739463418329,0.02514582,95768.0,95759.0,0.00022365]
[1739463418580,0.18177382,95768.0,95767.0,0.001]
[1739463418789,0.18177382,95768.0,95767.0,0.002]
[1739463419141,0.28427747,95768.0,95767.0,0.002]
[1739463420015,0.28427747,95768.0,95767.0,0.0005]
[1739463420225,0.156638,95762.0,95759.0,0.00022365]
[1739463420436,0.25914165,95762.0,95759.0,0.00022365]
[1739463420854,0.156654,95752.0,95751.0,0.0004]
[1739463421061,0.156687,95732.0,95731.0,0.08339458]
[1739463421482,0.156692,95729.0,95728.0,0.0001065]
[1739463421858,0.156692,95729.0,95728.0,0.00054458]
[1739463422035,0.18183782,95729.0,95728.0,0.00054458]
[1739463422436,0.25426383,95729.0,95728.0,0.00054458]
[1739463422641,0.20119444,95729.0,95728.0,0.00054458]
[1739463423474,0.21843555,95729.0,95728.0,0.00054458]
[1739463423909,0.21743555,95729.0,95728.0,0.00054458]
[1739463424062,0.21743555,95729.0,95728.0,0.00254458]
[1739463424267,0.21943555,95729.0,95728.0,0.00254458]
[1739463424497,0.20007893,95729.0,95728.0,0.00054458]
[1739463424827,0.19807893,95729.0,95728.0,0.00054458]
[1739463424991,0.19907893,95729.0,95728.0,0.00054458]
[1739463425415,0.04138693,95729.0,95728.0,0.00054458]
[1739463425621,0.02514582,95729.0,95728.0,0.00054458]
[1739463425778,0.02714582,95729.0,95728.0,0.00054458]
[1739463426705,0.02714582,95729.0,95728.0,0.07554458]
[1739463426911,0.02814582,95729.0,95728.0,0.17804823]
[1739463427119,0.02514582,95729.0,95728.0,0.17804823]
[1739463427547,0.02614582,95729.0,95728.0,0.07554458]
[1739463427761,0.01067455,95729.0,95728.0,0.07554458]
[1739463427959,0.00967455,95729.0,95728.0,0.07554458]
[1739463428389,0.01067455,95729.0,95728.0,0.00254458]
[1739463428794,0.19945542,95728.0,95724.0,0.156699]
[1739463429003,0.19945542,95728.0,95726.0,0.156696]
[1739463429422,0.19945542,95728.0,95722.0,0.07833135]
[1739463429652,0.208931,95725.0,95722.0,0.07833135]
[1739463429858,0.156702,95723.0,95722.0,0.00013135]
[1739463431147,0.18184782,95723.0,95722.0,0.00013135]
[1739463432383,0.18184782,95723.0,95722.0,0.00113135]
[1739463432796,0.02514582,95723.0,95722.0,0.00113135]
[1739463433212,0.04124961,95723.0,95722.0,0.00113135]
[1739463434898,0.04446443,95723.0,95722.0,0.00113135]
[1739463435315,0.38732824,95723.0,95722.0,0.00123805]
[1739463435542,0.30367008,95723.0,95722.0,0.00123805]
[1739463435971,0.30367008,95723.0,95694.0,0.12991778]
[1739463435972,0.14696808,95723.0,95694.0,0.12991778]
[1739463436178,0.22029845,95710.0,95694.0,0.13005009]
[1739463436382,0.01608233,95709.0,95694.0,0.13005009]
[1739463436590,0.156733,95704.0,95695.0,0.156748]
[1739463436787,0.01608233,95709.0,95694.0,0.04665551]
[1739463437001,0.156735,95703.0,95694.0,0.04665551]
[1739463437201,0.01608233,95709.0,95694.0,0.04665551]
[1739463437448,0.15673,95706.0,95698.0,0.156742]
[1739463437848,0.156734,95704.0,95696.0,0.156745]
[1739463438026,0.01572433,95706.0,95694.0,0.04665551]
[1739463438283,0.01608233,95707.0,95694.0,0.00013231]
[1739463438728,0.01931861,95705.0,95694.0,0.00013231]
[1739463439115,0.208977,95704.0,95694.0,0.00013231]
[1739463439333,0.156738,95701.0,95694.0,0.00013231]
[1739463439544,0.01931861,95705.0,95694.0,0.00013231]
[1739463439741,0.02514582,95704.0,95694.0,0.00013231]
[1739463439991,0.02514582,95704.0,95698.0,0.158741]
[1739463440199,0.02514582,95704.0,95698.0,0.002]
[1739463440200,0.156738,95702.0,95698.0,0.002]
[1739463440424,0.156741,95699.0,95698.0,0.002]
[1739463440651,0.156741,95699.0,95694.0,0.00013231]
[1739463441040,0.02514582,95699.0,95694.0,0.00013231]
[1739463441243,0.01931861,95698.0,95694.0,0.00013231]
[1739463441598,0.156748,95695.0,95694.0,0.00013231]
[1739463442020,0.0801,95694.0,95631.0,0.0104]
[1739463442219,0.156785,95672.0,95659.0,0.01562378]
[1739463442421,0.156784,95673.0,95659.0,0.01562378]
[1739463442640,0.156773,95680.0,95651.0,0.0737066]
[1739463442841,0.22029845,95686.0,95651.0,0.0737066]
[1739463443047,0.209019,95685.0,95660.0,0.209073]
[1739463443389,0.156776,95678.0,95676.0,0.001]
[1739463443545,0.02514582,95685.0,95659.0,6.454e-05]
[1739463443760,0.156803,95661.0,95659.0,6.454e-05]
[1739463444353,0.22029845,95680.0,95659.0,6.454e-05]
[1739463444605,0.02514582,95660.0,95659.0,0.20913854]
[1739463444807,0.02514582,95660.0,95659.0,6.454e-05]
[1739463446690,0.02614582,95660.0,95659.0,0.00206454]
[1739463447055,0.02514582,95660.0,95659.0,0.00206454]
[1739463447252,0.02514582,95660.0,95659.0,0.10561353]
[1739463447648,0.02514582,95660.0,95659.0,0.10256819]
[1739463448406,0.00967455,95660.0,95659.0,0.26037419]
[1739463448606,0.00967455,95660.0,95659.0,0.33037419]
[1739463448946,0.01067455,95660.0,95659.0,0.47937419]
[1739463449066,0.00967455,95660.0,95659.0,0.47937419]
[1739463449268,0.00967455,95660.0,95659.0,0.48037419]
[1739463449477,0.00967455,95660.0,95659.0,0.10250365]
[1739463449684,0.00967455,95660.0,95659.0,0.33740965]
[1739463449685,5.5e-07,95660.0,95659.0,0.33740965]
[1739463450095,0.00200055,95660.0,95659.0,0.33840965]
[1739463450309,0.002,95660.0,95659.0,0.33840965]
[1739463451606,0.001,95660.0,95659.0,0.51040965]
[1739463451809,0.01547127,95681.0,95659.0,0.35360365]
[1739463452049,0.001,95694.0,95693.0,0.156751]
[1739463452881,0.001,95694.0,95691.0,0.156754]
[1739463453323,0.00113189,95694.0,95693.0,0.004]
[1739463453532,0.00113189,95694.0,95674.0,0.08339458]
[1739463453533,0.00113189,95694.0,95692.0,0.156752]
[1739463453661,0.00113189,95694.0,95689.0,0.209008]
[1739463453886,0.00113189,95694.0,95693.0,0.002]
[1739463454757,0.00113189,95694.0,95693.0,0.006]
[1739463454979,0.00113189,95694.0,95693.0,0.162751]
[1739463455209,0.00113189,95694.0,95693.0,0.156751]
[1739463455556,0.00113189,95694.0,95693.0,0.161751]
[1739463455762,0.00113189,95694.0,95693.0,0.158751]
[1739463455967,0.00113189,95694.0,95693.0,0.002]
[1739463456168,0.00113189,95694.0,95693.0,0.158751]
[1739463456371,0.00113189,95694.0,95693.0,0.159751]
[1739463456612,0.00113189,95694.0,95693.0,0.163751]
[1739463456832,0.00113189,95694.0,95693.0,0.26729953]
[1739463457144,0.00113189,95694.0,95693.0,0.26125465]
[1739463457368,0.00113189,95694.0,95693.0,0.31015465]
[1739463457698,0.00113189,95694.0,95693.0,0.30715465]
[1739463458314,0.00113189,95694.0,95693.0,0.32503587]
[1739463458698,0.00113189,95694.0,95693.0,0.32203587]
[1739463458901,0.00213189,95694.0,95693.0,0.26525465]
[1739463459271,0.00113189,95694.0,95693.0,0.155751]
[1739463459582,0.00213189,95694.0,95693.0,0.169751]
[1739463459801,0.00213189,95694.0,95693.0,0.162751]
[1739463460240,0.00313189,95694.0,95693.0,0.169751]
[1739463460449,0.00313189,95694.0,95693.0,0.27225465]
[1739463460876,0.00313189,95694.0,95693.0,0.007]
[1739463461076,0.00413189,95694.0,95693.0,0.014]
[1739463461429,0.00213189,95694.0,95693.0,0.007]
[1739463461634,0.00113189,95694.0,95693.0,0.007]
[1739463461832,0.00313189,95694.0,95693.0,0.014]
[1739463462216,0.00213189,95694.0,95693.0,0.163751]
[1739463462427,0.00113189,95694.0,95693.0,0.156751]
[1739463462728,0.01179407,95694.0,95693.0,0.006]
[1739463462937,0.01179407,95694.0,95693.0,0.01]
[1739463463353,0.01079407,95694.0,95693.0,0.162751]
[1739463463763,0.01079407,95694.0,95693.0,0.006]
[1739463463990,0.00979407,95694.0,95676.0,0.290736]
[1739463464170,0.156751,95693.0,95681.0,0.15677]
[1739463464523,0.15788089,95694.0,95693.0,0.006]
[1739463464762,0.15888089,95694.0,95693.0,0.012]
[1739463464965,0.15788089,95694.0,95693.0,0.006]
[1739463465179,0.15888089,95694.0,95693.0,0.006]
[1739463465351,0.15788089,95694.0,95682.0,0.156768]
[1739463465489,0.16654998,95694.0,95672.0,0.08339458]
[1739463465692,0.16855098,95694.0,95693.0,0.006]
[1739463466969,0.27105463,95694.0,95693.0,0.006]
[1739463467175,0.54545463,95694.0,95693.0,0.006]
[1739463467403,0.54645463,95694.0,95693.0,0.006]
[1739463467799,0.156767,95683.0,95682.0,0.003]
[1739463468003,0.15,95693.0,95665.0,0.08339458]
[1739463468181,0.209018,95686.0,95666.0,0.20906]
[1739463468385,0.10250365,95692.0,95671.0,0.156785]
[1739463468575,0.16643309,95685.0,95671.0,0.156785]
[1739463468773,0.00966909,95685.0,95665.0,0.08339458]
[1739463469033,0.003,95683.0,95669.0,0.156789]
[1739463469255,0.003,95683.0,95666.0,0.20906]
[1739463469507,0.003,95683.0,95682.0,0.156769]
[1739463469698,0.003,95683.0,95680.0,0.209028]
[1739463469926,0.002,95683.0,95681.0,0.15677]
[1739463470248,0.004,95683.0,95682.0,0.156769]
[1739463470466,0.004,95683.0,95682.0,0.25927265]
[1739463470796,0.002,95683.0,95682.0,0.25927265]
[1739463471264,0.002,95683.0,95682.0,0.10250365]
[1739463471460,0.001,95685.0,95677.0,0.076]
[1739463471659,0.00967394,95693.0,95670.0,0.209051]
[1739463471864,0.00967394,95693.0,95669.0,0.0001068]
[1739463471865,0.156756,95690.0,95682.0,0.003]
[1739463472087,0.001,95683.0,95673.0,0.209045]
[1739463472204,0.001,95683.0,95678.0,0.156774]
[1739463472412,0.001,95683.0,95682.0,0.003]
[1739463472618,0.001,95683.0,95682.0,0.01168]
[1739463472862,0.01067394,95683.0,95682.0,0.00868]
[1739463473063,0.01067394,95683.0,95682.0,0.002]
[1739463473309,0.01067394,95683.0,95682.0,0.158769]
[1739463473497,0.00967394,95683.0,95682.0,0.25927265]
[1739463473807,0.00967394,95683.0,95682.0,0.33697265]
[1739463474099,0.00967394,95683.0,95682.0,0.55817265]
[1739463474301,0.00603891,95693.0,95692.0,0.179752]
[1739463474440,0.00603891,95693.0,95692.0,0.36100036]
[1739463474646,0.00603891,95693.0,95692.0,0.35995565]
[1739463475481,0.00603891,95693.0,95692.0,0.48695565]
[1739463475688,0.00603891,95693.0,95692.0,0.51495565]
[1739463475887,0.00013189,95694.0,95693.0,0.173]
[1739463476135,0.00013189,95694.0,95693.0,0.27550365]
[1739463476787,0.00013189,95694.0,95693.0,0.25250365]
[1739463477560,0.00013189,95694.0,95693.0,0.27950365]
[1739463478174,0.00013189,95694.0,95693.0,0.29550365]
[1739463478333,0.00013189,95694.0,95693.0,0.30350365]
[1739463478533,0.00013189,95694.0,95693.0,0.92020365]
[1739463478741,0.00013189,95694.0,95693.0,0.96960365]
[1739463479058,0.00013189,95694.0,95693.0,0.96560365]
[1739463479745,0.00013189,95694.0,95693.0,0.96160365]
[1739463479911,0.00113189,95694.0,95693.0,0.97160365]
[1739463480295,7.679101,95700.0,95699.0,0.02]
[1739463480561,7.27023165,95700.0,95699.0,0.53554465]
[1739463480778,7.15163819,95700.0,95699.0,0.50574465]
[1739463480985,7.04714319,95700.0,95699.0,0.53822711]
[1739463481170,7.01514319,95700.0,95699.0,0.50574465]
[1739463481374,7.01514319,95700.0,95699.0,0.53824064]
[1739463481497,7.01514319,95700.0,95699.0,0.46054465]
[1739463481498,6.84125324,95700.0,95699.0,0.46054465]
[1739463481695,6.69717162,95700.0,95699.0,0.54641005]
[1739463481909,6.26245372,95700.0,95699.0,1.10300066]
[1739463482109,6.18245334,95700.0,95699.0,1.05560616]
[1739463482306,6.18245334,95700.0,95699.0,1.04960616]
[1739463482512,6.11365334,95700.0,95699.0,1.04960616]
[1739463482719,6.03711243,95700.0,95699.0,1.08486825]
[1739463482985,5.93261743,95700.0,95699.0,1.10300066]
[1739463483229,5.87731743,95700.0,95699.0,1.04960616]
[1739463483432,5.87831743,95700.0,95699.0,1.05660616]
[1739463484046,5.83651943,95700.0,95699.0,1.05660616]
[1739463484258,5.77382243,95700.0,95699.0,1.05660616]
[1739463484436,5.77382243,95700.0,95699.0,1.06360616]
[1739463484651,5.77304671,95700.0,95699.0,1.05660616]
[1739463484853,5.69840971,95700.0,95699.0,1.06360616]
[1739463485051,5.31639771,95700.0,95699.0,1.06360616]
[1739463485292,5.26776253,95700.0,95699.0,1.06360616]
[1739463485501,5.23476253,95700.0,95699.0,1.06360616]
[1739463485834,5.19296453,95700.0,95699.0,1.05360616]
[1739463486040,5.13026753,95700.0,95699.0,1.05360616]
[1739463486261,5.09106753,95700.0,95699.0,1.06360616]
[1739463486450,5.04686753,95700.0,95699.0,1.06360616]
[1739463486881,4.97859053,95700.0,95699.0,1.06360616]
[1739463487058,4.93679253,95700.0,95699.0,1.06360616]
[1739463487255,4.73210534,95700.0,95699.0,1.06360616]
[1739463487441,4.52591534,95700.0,95699.0,1.06360616]
[1739463487932,4.38866034,95700.0,95699.0,1.06360616]
[1739463488861,4.38866034,95700.0,95699.0,1.02060616]
[1739463489070,4.38866034,95700.0,95699.0,1.03060616]
[1739463489277,4.38866034,95700.0,95699.0,0.99813526]
[1739463489562,4.38866034,95700.0,95699.0,1.02113526]
[1739463489768,4.34686234,95700.0,95699.0,1.03113526]
[1739463489984,4.20056934,95700.0,95699.0,1.03113526]
[1739463490398,4.20056934,95700.0,95699.0,1.02113526]
[1739463490609,4.02964906,95700.0,95699.0,1.01113526]
[1739463490816,4.02964906,95700.0,95699.0,0.86283526]
[1739463491026,4.02964906,95700.0,95699.0,0.82983526]
[1739463491241,4.02964906,95700.0,95699.0,0.84983526]
[1739463491621,4.02964906,95700.0,95699.0,0.98983526]
[1739463492202,4.02964906,95700.0,95699.0,1.02283526]
[1739463493770,3.92515406,95700.0,95699.0,1.02283526]
[1739463493952,3.82000506,95700.0,95699.0,1.02283526]
[1739463494865,3.77820706,95700.0,95699.0,1.02283526]
[1739463495179,3.73640906,95700.0,95699.0,1.02283526]
[1739463495585,3.73640906,95700.0,95699.0,1.01283526]
[1739463495803,3.73640906,95700.0,95699.0,1.02283526]
[1739463495944,3.73640906,95700.0,95699.0,1.01283526]
[1739463496166,0.00022428,95700.0,95699.0,1.01283526]
[1739463496929,0.00022428,95700.0,95699.0,1.02283526]
[1739463497490,2.8e-07,95700.0,95699.0,1.02294196]
[1739463497894,2.8e-07,95700.0,95699.0,1.05528901]
[1739463498067,0.00022408,95723.0,95699.0,1.05528901]
[1739463498068,8e-08,95723.0,95722.0,0.349703]
[1739463498250,1.9e-07,95723.0,95722.0,0.98740665]
[1739463498450,0.1251,95746.0,95722.0,0.98740665]
[1739463498710,0.13777661,95728.0,95727.0,0.45219865]
[1739463499027,0.07509761,95728.0,95727.0,0.45219865]
[1739463499657,0.03331161,95728.0,95727.0,0.98739865]
[1739463499872,6.1e-07,95728.0,95727.0,0.98739865]
[1739463500076,6.1e-07,95728.0,95727.0,1.01973271]
[1739463500280,6.1e-07,95728.0,95727.0,1.03437183]
[1739463500905,6.1e-07,95728.0,95727.0,1.04037183]
[1739463501103,6.1e-07,95728.0,95727.0,1.04537183]
[1739463501321,0.0768,95762.0,95761.0,0.306639]
[1739463501535,0.00022408,95768.0,95767.0,0.32963]
[1739463501766,0.00066542,95768.0,95767.0,0.43213365]
[1739463502587,0.00066542,95768.0,95767.0,0.44213365]
[1739463502821,0.00066542,95768.0,95767.0,0.45213365]
[1739463503977,0.00066542,95768.0,95767.0,0.45613365]
[1739463504232,0.00066542,95768.0,95767.0,0.45213365]
[1739463504679,0.00066542,95768.0,95767.0,0.45513365]
[1739463505949,0.00066542,95768.0,95767.0,0.45913365]
[1739463506368,0.00066542,95768.0,95767.0,0.45513365]
[1739463508474,0.00066542,95768.0,95767.0,0.48750379]
[1739463508682,0.00066542,95768.0,95767.0,0.45513365]
[1739463508891,0.00066542,95768.0,95767.0,0.48749632]
[1739463510206,0.0823,95786.0,95785.0,0.3066]
[1739463510504,0.08243231,95786.0,95785.0,0.43210365]
[1739463511133,0.08243231,95786.0,95785.0,0.46447208]
[1739463511338,0.08243231,95786.0,95785.0,0.27550365]
[1739463511543,0.08243231,95786.0,95785.0,0.25250365]
[1739463511748,0.08243231,95786.0,95785.0,0.26966092]
[1739463511953,0.08243231,95786.0,95785.0,0.25450365]
[1739463512163,0.12823231,95786.0,95785.0,0.10550365]
[1739463513047,0.12823231,95786.0,95785.0,0.003]
[1739463513924,0.12823231,95786.0,95785.0,0.002]
[1739463514990,0.12823231,95786.0,95785.0,0.003]
[1739463516045,0.1303,95783.0,95760.0,0.08339458]
[1739463516244,0.00013231,95786.0,95760.0,0.08339458]
[1739463516245,0.0499,95773.0,95761.0,0.10250365]
[1739463516426,0.0804,95772.0,95761.0,0.10250365]
[1739463516794,0.00967044,95771.0,95761.0,0.10250365]
[1739463517085,0.00967044,95771.0,95762.0,0.156638]
[1739463517359,0.00967044,95771.0,95763.0,0.10250365]
[1739463517973,0.0804,95772.0,95763.0,0.10250365]
[1739463518206,0.0804,95772.0,95771.0,0.156623]
[1739463518372,0.0804,95772.0,95771.0,0.25912665]
[1739463518582,0.0804,95772.0,95771.0,0.40912665]
[1739463519020,0.0804,95772.0,95771.0,0.44154614]